fUSD/lending_fUSD_20250704
["ID","MTS","AMOUNT","RATE_DAILY","PERIOD"]
[369471214,1751587845031,-460.0,0.00021917,2]
[369471215,1751587845040,-460.0,0.00021917,2]
[369471216,1751587845049,-460.0,0.00021917,2]
[369471217,1751587845058,-460.0,0.00021917,2]
[369471218,1751587845067,-460.0,0.00021917,2]
[369471219,1751587845077,-460.0,0.00021917,2]
[369471220,1751587845086,-460.0,0.00021917,2]
[369471221,1751587845095,-577.76143912,0.00021917,2]
[369471222,1751587845104,-460.0,0.00021917,2]
[369471223,1751587845114,-792.54,0.00021917,2]
[369471224,1751587845123,-460.0,0.00021917,2]
[369471225,1751587845133,-460.0,0.00021917,2]
[369471226,1751587845142,-500.0,0.00021917,2]
[369471227,1751587845152,-1048.37,0.00021917,2]
[369471228,1751587845161,-460.0,0.00021917,2]
[369471229,1751587845171,-460.0,0.00021917,2]
[369471230,1751587845180,-693.14,0.00021917,2]
[369471231,1751587845189,-460.0,0.00021917,2]
[369471232,1751587845198,-617.37,0.00021917,2]
[369471233,1751587845208,-836.01,0.00021917,2]
[369471234,1751587845217,-209.60574348,0.00021917,2]
[369471235,1751587845227,-490.0,0.00021917,2]
[369471236,1751587845236,-460.0,0.00021917,2]
[369471237,1751587845245,-897.08,0.00021917,2]
[369471238,1751587845255,-604.58,0.00021917,2]
[369471239,1751587845264,-1354.82,0.00021917,2]
[369471240,1751587845274,-460.0,0.00021917,2]
[369471241,1751587845284,-460.0,0.00021917,2]
[369471242,1751587845293,-460.0,0.00021917,2]
[369471243,1751587845303,-897.02,0.00021917,2]
[369471244,1751587845312,-770.84,0.00021917,2]
[369471245,1751587845321,-1554.67,0.00021917,2]
[369471246,1751587845331,-783.65,0.00021917,2]
[369471247,1751587845341,-783.65,0.00021917,2]
[369471248,1751587845350,-783.65,0.00021917,2]
[369471250,1751587845359,-783.65,0.00021917,2]
[369471252,1751587845368,-460.0,0.00021917,2]
[369471253,1751587845377,-460.0,0.00021917,2]
[369471254,1751587845386,-202.81096062,0.00021917,2]
[369471255,1751587845396,-460.0,0.00021917,2]
[369471256,1751587845405,-460.0,0.00021917,2]
[369471257,1751587845414,-460.0,0.00021917,2]
[369471258,1751587845423,-285.23756105,0.00021917,2]
[369471259,1751587845432,-698.87,0.00021917,2]
[369471260,1751587845441,-460.0,0.00021917,2]
[369471261,1751587845450,-460.0,0.00021917,2]
[369471262,1751587845459,-460.0,0.00021917,2]
[369471263,1751587845468,-1801.65,0.00021917,2]
[369471264,1751587845477,-460.0,0.00021917,2]
[369471265,1751587845486,-1065.12,0.00021917,2]
[369471266,1751587845496,-605.58,0.00021917,2]
[369471267,1751587845505,-460.0,0.00021917,2]
[369471268,1751587845514,-460.0,0.00021917,2]
[369471269,1751587845523,-813.38,0.00021917,2]
[369471270,1751587845532,-460.0,0.00021917,2]
[369471271,1751587845540,-1438.03,0.00021917,2]
[369471272,1751587845549,-649.75,0.00021917,2]
[369471273,1751587845562,-460.0,0.00021917,2]
[369471274,1751587845572,-460.0,0.00021917,2]
[369471275,1751587845580,-477.93,0.00021917,2]
[369471276,1751587845590,-1049.98,0.00021917,2]
[369471277,1751587845601,-674.94,0.00021917,2]
[369471278,1751587845610,-701.14,0.00021917,2]
[369471279,1751587845619,-460.0,0.00021917,2]
[369471280,1751587845629,-460.0,0.00021917,2]
[369471281,1751587845638,-460.0,0.00021917,2]
[369471282,1751587845647,-970.07,0.00021917,2]
[369471283,1751587845656,-460.0,0.00021917,2]
[369471284,1751587845666,-798.77,0.00021917,2]
[369471285,1751587845675,-1106.26,0.00021917,2]
[369471286,1751587845685,-875.59,0.00021917,2]
[369471287,1751587845694,-460.0,0.00021917,2]
[369471288,1751587845703,-1525.6,0.00021917,2]
[369471289,1751587845713,-460.0,0.00021917,2]
[369471290,1751587845722,-460.0,0.00021917,2]
[369471291,1751587845731,-502.67,0.00021917,2]
[369471292,1751587845740,-609.1,0.00021917,2]
[369471293,1751587845750,-460.0,0.00021917,2]
[369471294,1751587845759,-631.49,0.00021917,2]
[369471295,1751587845768,-803.21,0.00021917,2]
[369471296,1751587845777,-956.3,0.00021917,2]
[369471297,1751587845787,-751.99,0.00021917,2]
[369471299,1751587845796,-670.93,0.00021917,2]
[369471300,1751587845805,-865.16,0.00021917,2]
[369471302,1751587845814,-460.0,0.00021917,2]
[369471303,1751587845823,-1329.61,0.00021917,2]
[369471304,1751587845832,-460.0,0.00021917,2]
[369471305,1751587845842,-460.0,0.00021917,2]
[369471306,1751587845851,-460.0,0.00021917,2]
[369471307,1751587845861,-752.19,0.00021917,2]
[369471308,1751587845871,-641.28,0.00021917,2]
[369471309,1751587845880,-1769.12,0.00021917,2]
[369471310,1751587845889,-460.0,0.00021917,2]
[369471311,1751587845899,-460.0,0.00021917,2]
[369471312,1751587845907,-460.0,0.00021917,2]
[369471313,1751587845917,-460.0,0.00021917,2]
[369471314,1751587845926,-460.0,0.00021917,2]
[369471315,1751587845935,-865.96,0.00021917,2]
[369471316,1751587845944,-460.0,0.00021917,2]
[369471317,1751587845953,-1324.36,0.00021917,2]
[369471318,1751587845962,-460.0,0.00021917,2]
[369471319,1751587845971,-209.69546421,0.00021917,2]
[369471320,1751587845980,-460.0,0.00021917,2]
[369471321,1751587845990,-460.0,0.00021917,2]
[369471322,1751587846000,-460.0,0.00021917,2]
[369471323,1751587846009,-460.0,0.00021917,2]
[369471324,1751587846018,-460.0,0.00021917,2]
[369471325,1751587846028,-460.0,0.00021917,2]
[369471326,1751587846038,-460.0,0.00021917,2]
[369471327,1751587846048,-1561.02,0.00021917,2]
[369471328,1751587846057,-460.0,0.00021917,2]
[369471329,1751587846067,-1415.4,0.00021917,2]
[369471330,1751587846077,-460.0,0.00021917,2]
[369471331,1751587846086,-839.68,0.00021917,2]
[369471332,1751587846096,-460.0,0.00021917,2]
[369471333,1751587846106,-1113.3,0.00021917,2]
[369471334,1751587846116,-460.0,0.00021917,2]
[369471336,1751587846126,-460.0,0.00021917,2]
[369471338,1751587846135,-460.0,0.00021917,2]
[369471340,1751587846145,-534.61,0.00021917,2]
[369471342,1751587846154,-1530.23,0.00021917,2]
[369471344,1751587846163,-1326.96,0.00021917,2]
[369471345,1751587846173,-460.0,0.00021917,2]
[369471347,1751587846183,-500.0,0.00021917,2]
[369471349,1751587846192,-460.0,0.00021917,2]
[369471350,1751587846201,-555.62212536,0.00021917,2]
[369471351,1751587846211,-460.0,0.00021917,2]
[369471352,1751587846220,-578.09,0.00021917,2]
[369471353,1751587846229,-460.0,0.00021917,2]
[369471354,1751587846238,-150.0,0.00021917,2]
[369471355,1751587846248,-493.33573313,0.00021917,2]
[369471356,1751587846257,-460.0,0.00021917,2]
[369471357,1751587846267,-460.0,0.00021917,2]
[369471358,1751587846276,-460.0,0.00021917,2]
[369471359,1751587846285,-838.83,0.00021917,2]
[369471360,1751587846294,-460.0,0.00021917,2]
[369471361,1751587846304,-747.98,0.00021917,2]
[369471362,1751587846314,-460.0,0.00021917,2]
[369471363,1751587846323,-834.79,0.00021917,2]
[369471364,1751587846333,-611.24,0.00021917,2]
[369471365,1751587846343,-1586.14,0.00021917,2]
[369471366,1751587846352,-460.0,0.00021917,2]
[369471367,1751587846362,-460.0,0.00021917,2]
[369471368,1751587846624,-460.0,0.00021917,2]
[369471369,1751587846636,-520.0,0.00021917,2]
[369471370,1751587846646,-460.0,0.00021917,2]
[369471371,1751587846656,-546.01,0.00021917,2]
[369471372,1751587846666,-460.0,0.00021917,2]
[369471373,1751587846675,-673.28,0.00021917,2]
[369471374,1751587846684,-460.0,0.00021917,2]
[369471375,1751587846694,-534.65,0.00021917,2]
[369471376,1751587846703,-460.0,0.00021917,2]
[369471377,1751587846713,-667.75,0.00021917,2]
[369471378,1751587846722,-1247.35,0.00021917,2]
[369471379,1751587846731,-493.47623707,0.00021917,2]
[369471380,1751587846740,-460.0,0.00021917,2]
[369471381,1751587846750,-693.59,0.00021917,2]
[369471382,1751587846759,-460.0,0.00021917,2]
[369471383,1751587846768,-460.0,0.00021917,2]
[369471384,1751587846777,-1669.19,0.00021917,2]
[369471385,1751587846787,-460.0,0.00021917,2]
[369471386,1751587846796,-460.0,0.00021917,2]
[369471387,1751587846806,-460.0,0.00021917,2]
[369471388,1751587846820,-482.51862408,0.00021917,2]
[369471389,1751587846829,-460.0,0.00021917,2]
[369471390,1751587846839,-373.90571044,0.00021917,2]
[369471391,1751587846848,-905.42,0.00021917,2]
[369471392,1751587846857,-460.0,0.00021917,2]
[369471393,1751587846867,-240.84053982,0.00021917,2]
[369471394,1751587846876,-1156.83,0.00021917,2]
[369471395,1751587846885,-460.0,0.00021917,2]
[369471396,1751587846895,-460.0,0.00021917,2]
[369471397,1751587846904,-490.0,0.00021917,2]
[369471398,1751587846913,-460.0,0.00021917,2]
[369471399,1751587846923,-1086.63,0.00021917,2]
[369471400,1751587846932,-490.0,0.00021917,2]
[369471401,1751587846944,-460.0,0.00021917,2]
[369471402,1751587846953,-460.0,0.00021917,2]
[369471403,1751587846963,-460.0,0.00021917,2]
[369471404,1751587846972,-460.0,0.00021917,2]
[369471405,1751587846981,-335.23865069,0.00021917,2]
[369471406,1751587846991,-491.79075893,0.00021917,2]
[369471407,1751587847000,-460.0,0.00021917,2]
[369471408,1751587847010,-460.0,0.00021917,2]
[369471409,1751587847019,-460.0,0.00021917,2]
[369471410,1751587847029,-537.84,0.00021917,2]
[369471411,1751587847039,-460.0,0.00021917,2]
[369471412,1751587847048,-1277.04,0.00021917,2]
[369471413,1751587847057,-490.0,0.00021917,2]
[369471414,1751587847067,-1539.95,0.00021917,2]
[369471415,1751587847076,-1623.77,0.00021917,2]
[369471416,1751587847086,-460.0,0.00021917,2]
[369471417,1751587847096,-460.0,0.00021917,2]
[369471418,1751587847106,-460.0,0.00021917,2]
[369471419,1751587847115,-460.0,0.00021917,2]
[369471420,1751587847125,-460.0,0.00021917,2]
[369471421,1751587847134,-599.0,0.00021917,2]
[369471422,1751587847143,-658.97,0.00021917,2]
[369471423,1751587847153,-460.0,0.00021917,2]
[369471424,1751587847163,-460.0,0.00021917,2]
[369471425,1751587847173,-460.0,0.00021917,2]
[369471426,1751587847182,-460.0,0.00021917,2]
[369471427,1751587847192,-500.0,0.00021917,2]
[369471428,1751587847202,-460.0,0.00021917,2]
[369471429,1751587847211,-500.0,0.00021917,2]
[369471430,1751587847221,-433.91112692,0.00021917,2]
[369471431,1751587847231,-1643.74,0.00021917,2]
[369471432,1751587847240,-519.0,0.00021917,2]
[369471433,1751587847250,-460.0,0.00021917,2]
[369471434,1751587847259,-460.0,0.00021917,2]
[369471435,1751587847269,-952.3,0.00021917,2]
[369471436,1751587847278,-460.0,0.00021917,2]
[369471437,1751587847288,-460.0,0.00021917,2]
[369471438,1751587847298,-460.0,0.00021917,2]
[369471439,1751587847307,-460.0,0.00021917,2]
[369471440,1751587847317,-501.16,0.00021917,2]
[369471441,1751587847327,-1213.43,0.00021917,2]
[369471442,1751587847336,-460.0,0.00021917,2]
[369471443,1751587847345,-460.0,0.00021917,2]
[369471444,1751587847354,-150.0,0.00021917,2]
[369471445,1751587847364,-856.58,0.00021917,2]
[369471446,1751587847373,-460.0,0.00021917,2]
[369471447,1751587847383,-460.0,0.00021917,2]
[369471448,1751587847392,-618.74,0.00021917,2]
[369471449,1751587847402,-460.0,0.00021917,2]
[369471450,1751587847411,-846.89,0.00021917,2]
[369471451,1751587847421,-500.0,0.00021917,2]
[369471452,1751587847430,-460.0,0.00021917,2]
[369471453,1751587847440,-1039.54,0.00021917,2]
[369471454,1751587847449,-484.19428081,0.00021917,2]
[369471455,1751587847458,-572.08,0.00021917,2]
[369471456,1751587847467,-460.0,0.00021917,2]
[369471457,1751587847477,-799.58,0.00021917,2]
[369471458,1751587847487,-460.0,0.00021917,2]
[369471459,1751587847496,-460.0,0.00021917,2]
[369471460,1751587847506,-490.0,0.00021917,2]
[369471461,1751587847515,-491.55533832,0.00021917,2]
[369471462,1751587847525,-460.0,0.00021917,2]
[369471463,1751587847534,-787.21,0.00021917,2]
[369471464,1751587847544,-460.0,0.00021917,2]
[369471465,1751587847555,-460.0,0.00021917,2]
[369471466,1751587847566,-1229.18,0.00021917,2]
[369471467,1751587847576,-510.0,0.00021917,2]
[369471468,1751587847585,-1125.76,0.00021917,2]
[369471469,1751587847595,-460.0,0.00021917,2]
[369471470,1751587847604,-850.22,0.00021917,2]
[369471471,1751587847614,-460.0,0.00021917,2]
[369471472,1751587847624,-460.0,0.00021917,2]
[369471473,1751587847635,-490.0,0.00021917,2]
[369471474,1751587847646,-613.58,0.00021917,2]
[369471475,1751587847656,-456.7653068,0.00021917,2]
[369471476,1751587847666,-1327.7,0.00021917,2]
[369471477,1751587847675,-888.23,0.00021917,2]
[369471478,1751587847685,-578.44,0.00021917,2]
[369471479,1751587847694,-973.46,0.00021917,2]
[369471480,1751587847704,-1291.91,0.00021917,2]
[369471481,1751587847713,-796.91,0.00021917,2]
[369471482,1751587847723,-460.0,0.00021917,2]
[369471483,1751587847732,-460.0,0.00021917,2]
[369471484,1751587847741,-460.0,0.00021917,2]
[369471485,1751587847750,-460.0,0.00021917,2]
[369471486,1751587847760,-490.87083967,0.00021917,2]
[369471487,1751587847769,-1397.83,0.00021917,2]
[369471488,1751587847778,-603.04,0.00021917,2]
[369471489,1751587847788,-849.16,0.00021917,2]
[369471490,1751587847797,-460.0,0.00021917,2]
[369471491,1751587847806,-460.0,0.00021917,2]
[369471492,1751587847815,-482.81,0.00021917,2]
[369471493,1751587847825,-460.0,0.00021917,2]
[369471494,1751587847835,-300.0,0.00021917,2]
[369471495,1751587847844,-460.0,0.00021917,2]
[369471496,1751587847854,-460.0,0.00021917,2]
[369471497,1751587847863,-460.0,0.00021917,2]
[369471498,1751587847873,-460.0,0.00021917,2]
[369471499,1751587847882,-911.85,0.00021917,2]
[369471500,1751587847891,-460.0,0.00021917,2]
[369471501,1751587847901,-500.0,0.00021917,2]
[369471502,1751587847910,-460.0,0.00021917,2]
[369471503,1751587847920,-1047.16,0.00021917,2]
[369471504,1751587847929,-460.0,0.00021917,2]
[369471505,1751587847939,-811.42,0.00021917,2]
[369471506,1751587847948,-460.0,0.00021917,2]
[369471507,1751587847957,-150.0,0.00021917,2]
[369471508,1751587847967,-460.0,0.00021917,2]
[369471509,1751587847977,-1293.57,0.00021917,2]
[369471510,1751587847986,-150.0,0.00021917,2]
[369471511,1751587847996,-150.0,0.00021917,2]
[369471512,1751587848005,-460.0,0.00021917,2]
[369471513,1751587848015,-460.0,0.00021917,2]
[369471514,1751587848024,-1036.0,0.00021917,2]
[369471515,1751587848033,-150.0,0.00021917,2]
[369471516,1751587848043,-460.0,0.00021917,2]
[369471517,1751587848053,-460.0,0.00021917,2]
[369471518,1751587848062,-1735.22,0.00021917,2]
[369471519,1751587848071,-460.0,0.00021917,2]
[369471520,1751587848081,-836.87,0.00021917,2]
[369471521,1751587848091,-796.96,0.00021917,2]
[369471522,1751587848101,-460.0,0.00021917,2]
[369471523,1751587848111,-1845.46,0.00021917,2]
[369471524,1751587848120,-460.0,0.00021917,2]
[369471525,1751587848130,-1769.6,0.00021917,2]
[369471526,1751587848139,-1334.26,0.00021917,2]
[369471527,1751587848149,-900.4,0.00021917,2]
[369471528,1751587848158,-460.0,0.00021917,2]
[369471529,1751587848167,-460.0,0.00021917,2]
[369471530,1751587848176,-460.0,0.00021917,2]
[369471531,1751587848186,-460.0,0.00021917,2]
[369471532,1751587848195,-460.0,0.00021917,2]
[369471533,1751587848204,-460.0,0.00021917,2]
[369471534,1751587848216,-460.0,0.00021917,2]
[369471535,1751587848226,-460.0,0.00021917,2]
[369471536,1751587848235,-733.27,0.00021917,2]
[369471537,1751587848245,-915.45,0.00021917,2]
[369471538,1751587848255,-468.03,0.00021917,2]
[369471539,1751587848264,-468.1858407,0.00021917,2]
[369471540,1751587848273,-736.85,0.00021917,2]
[369471541,1751587848283,-460.0,0.00021917,2]
[369471542,1751587848292,-1187.51,0.00021917,2]
[369471543,1751587848302,-727.71,0.00021917,2]
[369471544,1751587848311,-460.0,0.00021917,2]
[369471545,1751587848322,-688.02,0.00021917,2]
[369471546,1751587848332,-460.0,0.00021917,2]
[369471547,1751587848341,-460.0,0.00021917,2]
[369471548,1751587848350,-460.0,0.00021917,2]
[369471549,1751587848359,-460.0,0.00021917,2]
[369471550,1751587848368,-460.0,0.00021917,2]
[369471551,1751587848378,-460.0,0.00021917,2]
[369471552,1751587848387,-460.0,0.00021917,2]
[369471553,1751587848396,-460.0,0.00021917,2]
[369471554,1751587848406,-460.0,0.00021917,2]
[369471555,1751587848415,-460.0,0.00021917,2]
[369471556,1751587848425,-577.34,0.00021917,2]
[369471557,1751587848434,-761.98,0.00021917,2]
[369471558,1751587848443,-460.0,0.00021917,2]
[369471559,1751587848452,-460.0,0.00021917,2]
[369471560,1751587848461,-460.0,0.00021917,2]
[369471561,1751587848471,-711.62,0.00021917,2]
[369471562,1751587848480,-460.0,0.00021917,2]
[369471563,1751587848490,-460.0,0.00021917,2]
[369471564,1751587848499,-2397.22,0.00021917,2]
[369471565,1751587848508,-490.0,0.00021917,2]
[369471566,1751587848518,-460.0,0.00021917,2]
[369471567,1751587848528,-460.0,0.00021917,2]
[369471568,1751587848538,-1117.65,0.00021917,2]
[369471569,1751587848547,-460.0,0.00021917,2]
[369471570,1751587848560,-1358.27,0.00021917,2]
[369471571,1751587848569,-490.0,0.00021917,2]
[369471572,1751587848579,-460.0,0.00021917,2]
[369471573,1751587848589,-460.0,0.00021917,2]
[369471574,1751587848599,-778.53,0.00021917,2]
[369471575,1751587848608,-1084.78,0.00021917,2]
[369471576,1751587848618,-460.0,0.00021917,2]
[369471577,1751587848627,-497.29,0.00021917,2]
[369471578,1751587848637,-460.0,0.00021917,2]
[369471579,1751587848647,-909.19,0.00021917,2]
[369471580,1751587848657,-821.89,0.00021917,2]
[369471581,1751587848666,-793.43,0.00021917,2]
[369471582,1751587848676,-520.0,0.00021917,2]
[369471583,1751587848685,-460.0,0.00021917,2]
[369471584,1751587848694,-707.97,0.00021917,2]
[369471585,1751587848704,-460.0,0.00021917,2]
[369471586,1751587848713,-1196.69,0.00021917,2]
[369471587,1751587848723,-1989.18,0.00021917,2]
[369471588,1751587848732,-2962.38,0.00021917,2]
[369471589,1751587848742,-1300.37,0.00021917,2]
[369471590,1751587848752,-460.0,0.00021917,2]
[369471591,1751587848762,-460.0,0.00021917,2]
[369471592,1751587848771,-460.0,0.00021917,2]
[369471593,1751587848780,-460.0,0.00021917,2]
[369471594,1751587848789,-460.0,0.00021917,2]
[369471595,1751587848798,-500.0,0.00021917,2]
[369471596,1751587848807,-1510.1,0.00021917,2]
[369471597,1751587848817,-1241.9,0.00021917,2]
[369471598,1751587848827,-460.0,0.00021917,2]
[369471599,1751587848836,-1578.0,0.00021917,2]
[369471600,1751587848845,-1553.17,0.00021917,2]
[369471601,1751587848854,-460.0,0.00021917,2]
[369471602,1751587848864,-460.0,0.00021917,2]
[369471603,1751587848873,-730.07,0.00021917,2]
[369471604,1751587848984,-460.0,0.00021917,2]
[369471605,1751587848994,-460.0,0.00021917,2]
[369471606,1751587849003,-460.0,0.00021917,2]
[369471607,1751587849012,-460.0,0.00021917,2]
[369471608,1751587849022,-460.0,0.00021917,2]
[369471609,1751587849031,-953.05,0.00021917,2]
[369471610,1751587849041,-500.0,0.00021917,2]
[369471611,1751587849050,-460.0,0.00021917,2]
[369471612,1751587849061,-1679.39,0.00021917,2]
[369471613,1751587849070,-460.0,0.00021917,2]
[369471614,1751587849080,-2004.0,0.00021917,2]
[369471615,1751587849089,-460.0,0.00021917,2]
[369471616,1751587849098,-460.0,0.00021917,2]
[369471617,1751587849107,-5896.95,0.00021917,2]
[369471618,1751587849117,-994.3,0.00021917,2]
[369471619,1751587849126,-1482.34,0.00021917,2]
[369471620,1751587849135,-460.0,0.00021917,2]
[369471621,1751587849144,-460.0,0.00021917,2]
[369471622,1751587849153,-5860.71,0.00021917,2]
[369471623,1751587849163,-497.03359008,0.00021917,2]
[369471624,1751587849172,-460.0,0.00021917,2]
[369471625,1751587849181,-460.0,0.00021917,2]
[369471626,1751587849191,-460.0,0.00021917,2]
[369471627,1751587849200,-460.0,0.00021917,2]
[369471628,1751587849210,-460.0,0.00021917,2]
[369471629,1751587849220,-460.0,0.00021917,2]
[369471630,1751587849229,-460.0,0.00021917,2]
[369471631,1751587849239,-1333.68,0.00021917,2]
[369471632,1751587849248,-8266.06,0.00021917,2]
[369471633,1751587849258,-1068.2,0.00021917,2]
[369471634,1751587849267,-500.0,0.00021917,2]
[369471635,1751587849276,-2118.47,0.00021917,2]
[369471636,1751587849286,-5642.37,0.00021917,2]
[369471637,1751587849295,-1262.13,0.00021917,2]
[369471638,1751587849304,-1873.2,0.00021917,2]
[369471639,1751587849314,-2129.34,0.00021917,2]
[369471640,1751587849323,-490.0,0.00021917,2]
[369471641,1751587849332,-613.32,0.00021917,2]
[369471642,1751587849341,-460.0,0.00021917,2]
[369471643,1751587849350,-6003.39,0.00021917,2]
[369471644,1751587849359,-859.2,0.00021917,2]
[369471645,1751587849369,-460.0,0.00021917,2]
[369471646,1751587849378,-1296.9,0.00021917,2]
[369471647,1751587849387,-516.15,0.00021917,2]
[369471648,1751587849397,-115103.56,0.00021917,2]
[369471649,1751587849406,-460.0,0.00021917,2]
[369471650,1751587849415,-200.00531944,0.00021917,2]
[369471651,1751587849425,-2182.51,0.00021917,2]
[369471652,1751587849434,-670.13,0.00021917,2]
[369471653,1751587849443,-460.0,0.00021917,2]
[369471654,1751587849453,-500.0,0.00021917,2]
[369471655,1751587849462,-1095.78,0.00021917,2]
[369471656,1751587849471,-150.0,0.00021917,2]
[369471657,1751587849480,-150.0,0.00021917,2]
[369471658,1751587849490,-460.0,0.00021917,2]
[369471659,1751587849499,-803.87,0.00021917,2]
[369471660,1751587849508,-500.0,0.00021917,2]
[369471661,1751587849517,-460.0,0.00021917,2]
[369471662,1751587849527,-150.0,0.00021917,2]
[369471663,1751587849536,-460.0,0.00021917,2]
[369471664,1751587849545,-645.39,0.00021917,2]
[369471665,1751587849556,-1077.87,0.00021917,2]
[369471666,1751587849566,-814.0,0.00021917,2]
[369471667,1751587849575,-460.0,0.00021917,2]
[369471668,1751587849585,-2063.13,0.00021917,2]
[369471669,1751587849595,-8068.27,0.00021917,2]
[369471670,1751587849605,-460.0,0.00021917,2]
[369471671,1751587849615,-821.43,0.00021917,2]
[369471672,1751587849624,-5226.53,0.00021917,2]
[369471673,1751587849634,-460.0,0.00021917,2]
[369471674,1751587849643,-460.0,0.00021917,2]
[369471675,1751587849652,-699.56,0.00021917,2]
[369471676,1751587849662,-859.42,0.00021917,2]
[369471677,1751587849671,-460.0,0.00021917,2]
[369471678,1751587849680,-460.0,0.00021917,2]
[369471679,1751587849689,-3693.53,0.00021917,2]
[369471680,1751587849698,-534.07,0.00021917,2]
[369471681,1751587849707,-723.22,0.00021917,2]
[369471682,1751587849717,-471.4,0.00021917,2]
[369471683,1751587849727,-162.15390812,0.00021917,2]
[369471684,1751587849736,-500.0,0.00021917,2]
[369471685,1751587849745,-1146.79,0.00021917,2]
[369471686,1751587849754,-619.04,0.00021917,2]
[369471687,1751587849763,-460.0,0.00021917,2]
[369471688,1751587849773,-460.0,0.00021917,2]
[369471689,1751587849783,-2216.87,0.00021917,2]
[369471690,1751587849792,-1291.72,0.00021917,2]
[369471691,1751587849801,-795.65,0.00021917,2]
[369471692,1751587849811,-536.29573966,0.00021917,2]
[369471693,1751587849820,-1576.53,0.00021917,2]
[369471694,1751587849829,-460.0,0.00021917,2]
[369471695,1751587849838,-460.89,0.00021917,2]
[369471696,1751587849847,-580.0,0.00021917,2]
[369471697,1751587849857,-460.0,0.00021917,2]
[369471698,1751587849866,-3500.87,0.00021917,2]
[369471699,1751587849876,-593.25,0.00021917,2]
[369471700,1751587849886,-460.0,0.00021917,2]
[369471701,1751587849897,-150.0,0.00021917,2]
[369471702,1751587849908,-460.0,0.00021917,2]
[369471703,1751587849919,-531.98,0.00021917,2]
[369471704,1751587849930,-1055.45,0.00021917,2]
[369471705,1751587849940,-2273.0,0.00021917,2]
[369471706,1751587849949,-460.0,0.00021917,2]
[369471707,1751587849959,-542.31,0.00021917,2]
[369471708,1751587849969,-1010.88,0.00021917,2]
[369471709,1751587849978,-152.937791,0.00021917,2]
[369471710,1751587849989,-1616.666659,0.00021917,2]
[369471711,1751587849999,-160.932526,0.00021917,2]
[369471712,1751587850010,-460.0,0.00021917,2]
[369471713,1751587850020,-460.0,0.00021917,2]
[369471714,1751587850029,-586.06,0.00021917,2]
[369471715,1751587850039,-334.57881439,0.00021917,2]
[369471716,1751587850049,-460.0,0.00021917,2]
[369471717,1751587850059,-1406.83,0.00021917,2]
[369471718,1751587850068,-460.0,0.00021917,2]
[369471719,1751587850077,-1903.397447,0.00021917,2]
[369471720,1751587850086,-460.0,0.00021917,2]
[369471721,1751587850096,-958.72,0.00021917,2]
[369471722,1751587850105,-460.0,0.00021917,2]
[369471723,1751587850114,-490.0,0.00021917,2]
[369471724,1751587850123,-460.0,0.00021917,2]